fUSD/lending_fUSD_20260516
["ID","MTS","AMOUNT","RATE_DAILY","PERIOD"]
[422394175,1778926233000,-250.0,0.00014,2]
[422394187,1778926233000,-3292.0,0.0001424,2]
[422394186,1778926233000,-150.0,0.00014237,2]
[422394188,1778926233000,-486.98,0.00014252,2]
[422394184,1778926233000,-218.52,0.00014199,2]
[422394185,1778926233000,-150.0,0.00014237,2]
[422394174,1778926233000,-150.0,0.00013987,2]
[422394176,1778926233000,-22743.22568135,0.00014032,2]
[422394172,1778926233000,-150.01,0.00013986,2]
[422394178,1778926233000,-2715.1253733,0.00014099,2]
[422394182,1778926233000,-22743.22568135,0.00014177,2]
[422394177,1778926233000,-486.98,0.00014086,2]
[422394183,1778926233000,-486.98,0.00014184,2]
[422394189,1778926233000,-7697.23193529,0.00014277,2]
[422394200,1778926233000,-160.0,0.00014449,2]
[422394191,1778926233000,-654.0,0.0001432,2]
[422394190,1778926233000,-2715.1253733,0.00014299,2]
[422394192,1778926233000,-22743.22568135,0.00014321,2]
[422394195,1778926233000,-152.0,0.00014392,7]
[422394196,1778926233000,-2300.0,0.000144,5]
[422394193,1778926233000,-721.70888989,0.0001435,2]
[422394194,1778926233000,-171.71,0.0001439,2]
[422394180,1778926233000,-7697.23193529,0.00014121,2]
[422394230,1778926234000,-2424.07895351,0.00014504,2]
[422394229,1778926234000,-2993.88054873,0.00014504,2]
[422394232,1778926234000,-14.96793486,0.00014504,2]
[422394231,1778926234000,-242.90726514,0.00014504,2]
[422394251,1778926238000,-2715.1253733,0.000147,2]
[422394262,1778926238000,-329.0,0.00014809,2]
[422394250,1778926238000,-424.697718,0.00014699,2]
[422394252,1778926238000,-700.0,0.000147,5]
[422394249,1778926238000,-177.589976,0.00014685,2]
[422394248,1778926238000,-342.56286,0.00014626,2]
[422394253,1778926238000,-2740.15720734,0.000147,2]
[422394247,1778926238000,-22743.22568135,0.00014611,2]
[422394246,1778926238000,-350.0,0.00014602,2]
[422394239,1778926238000,-160.0,0.00014553,2]
[422394243,1778926238000,-7456.31208365,0.00014588,2]
[422394244,1778926238000,-205.739025,0.00014594,2]
[422394241,1778926238000,-441.740112,0.00014553,2]
[422394242,1778926238000,-240.91985164,0.00014588,2]
[422394240,1778926238000,-300.870056,0.00014553,2]
[422394236,1778926238000,-1243.47,0.00014521,14]
[422394237,1778926238000,-78.63563649,0.00014522,2]
[422394238,1778926238000,-255.84474151,0.00014522,2]
[422394235,1778926238000,-770.04206514,0.00014504,2]
[422394245,1778926238000,-3800.0,0.000146,5]
[422394260,1778926238000,-329.0,0.00014773,2]
[422394272,1778926238000,-500.0,0.00014849,2]
[422394254,1778926238000,-350.0,0.00014714,2]
[422394279,1778926238000,-1069.93077,0.0001485,2]
[422394276,1778926238000,-10000.0,0.0001485,2]
[422394277,1778926238000,-24495.87741852,0.0001485,2]
[422394275,1778926238000,-500.0,0.00014849,2]
[422394271,1778926238000,-500.0,0.00014849,2]
[422394268,1778926238000,-500.0,0.00014849,2]
[422394266,1778926238000,-500.0,0.00014849,2]
[422394264,1778926238000,-320.0,0.00014842,2]
[422394267,1778926238000,-501.34591019,0.00014849,2]
[422394257,1778926238000,-853.1559,0.00014749,2]
[422394269,1778926238000,-500.0,0.00014849,2]
[422394273,1778926238000,-500.0,0.00014849,2]
[422394274,1778926238000,-500.0,0.00014849,2]
[422394263,1778926238000,-171.71,0.0001484,2]
[422394255,1778926238000,-150.0,0.00014737,2]
[422394261,1778926238000,-700.0,0.000148,5]
[422394256,1778926238000,-7697.23193529,0.00014744,2]
[422394259,1778926238000,-22743.22568135,0.00014755,2]
[422394258,1778926238000,-320.0,0.0001475,2]
[422394265,1778926238000,-350.0,0.00014846,2]
[422394362,1778926239000,-291.272368,0.00014986,2]
[422394360,1778926239000,-291.272368,0.00014986,2]
[422394346,1778926239000,-1327.5815065,0.00014986,2]
[422394344,1778926239000,-412.65887723,0.00014985,2]
[422394327,1778926239000,-500.0,0.00014985,2]
[422394339,1778926239000,-500.0,0.00014985,2]
[422394329,1778926239000,-500.0,0.00014985,2]
[422394337,1778926239000,-500.0,0.00014985,2]
[422394366,1778926239000,-291.272368,0.00014986,2]
[422394342,1778926239000,-500.0,0.00014985,2]
[422394348,1778926239000,-1250740.4345903,0.00014986,2]
[422394350,1778926239000,-5176.7391704,0.00014986,2]
[422394369,1778926239000,-150.0,0.00014986,2]
[422394356,1778926239000,-8459.334774,0.00014986,2]
[422394352,1778926239000,-8307.948593,0.00014986,2]
[422394325,1778926239000,-158.93919027,0.00014985,2]
[422394370,1778926239000,-166.93728157,0.00014986,2]
[422394354,1778926239000,-5564.3126723,0.00014986,2]
[422394358,1778926239000,-537.6472119,0.00014986,2]
[422394373,1778926239000,-150.0,0.00014986,2]
[422394374,1778926239000,-407.94896475,0.00014989,2]
[422394384,1778926239000,-500.0,0.00014989,2]
[422394365,1778926239000,-291.272368,0.00014986,2]
[422394335,1778926239000,-500.0,0.00014985,2]
[422394318,1778926239000,-320.0,0.00014939,2]
[422394333,1778926239000,-500.0,0.00014985,2]
[422394282,1778926239000,-150.0,0.00014852,2]
[422394280,1778926239000,-162.4956,0.0001485,2]
[422394284,1778926239000,-200.0,0.0001488,2]
[422394286,1778926239000,-2000.0,0.00014886,2]
[422394292,1778926239000,-210.41445728,0.000149,2]
[422394296,1778926239000,-172.81799297,0.000149,2]
[422394294,1778926239000,-987.0,0.000149,5]
[422394288,1778926239000,-226.83301235,0.00014886,2]
[422394290,1778926239000,-577.22585125,0.00014886,2]
[422394299,1778926239000,-172.81799297,0.000149,2]
[422394306,1778926239000,-7697.23193529,0.000149,2]
[422394308,1778926239000,-721.70888989,0.000149,2]
[422394301,1778926239000,-22743.22568135,0.000149,2]
[422394310,1778926239000,-405.10977948,0.000149,2]
[422394312,1778926239000,-2983.14833294,0.000149,2]
[422394314,1778926239000,-250.0,0.00014902,2]
[422394304,1778926239000,-2715.1253733,0.000149,2]
[422394303,1778926239000,-700.0,0.000149,5]
[422394321,1778926239000,-500.0,0.00014985,2]
[422394316,1778926239000,-208.0,0.00014907,2]
[422394387,1778926239000,-500.0,0.00014989,2]
[422394319,1778926239000,-329.0,0.0001498,2]
[422394323,1778926239000,-500.0,0.00014985,2]
[422394331,1778926239000,-500.0,0.00014985,2]
[422394383,1778926239000,-500.0,0.00014989,2]
[422394378,1778926239000,-271.01458838,0.00014989,2]
[422394443,1778926239000,-502.495938,0.00014999,2]
[422394444,1778926239000,-340.695552,0.00014999,2]
[422394436,1778926239000,-500.0,0.00014989,2]
[422394377,1778926239000,-500.0,0.00014989,2]
[422394456,1778926239000,-500.0,0.00014999,2]
[422394450,1778926239000,-199.53926711,0.00014999,2]
[422394453,1778926239000,-500.0,0.00014999,2]
[422394451,1778926239000,-481.83239558,0.00014999,2]
[422394454,1778926239000,-500.0,0.00014999,2]
[422394446,1778926239000,-500.0,0.00014999,2]
[422394448,1778926239000,-269.1813222,0.00014999,2]
[422394455,1778926239000,-500.0,0.00014999,2]
[422394447,1778926239000,-500.0,0.00014999,2]
[422394457,1778926239000,-621.13564933,0.00014999,2]
[422394449,1778926239000,-468.18676256,0.00014999,2]
[422394452,1778926239000,-500.0,0.00014999,2]
[422394459,1778926239000,-300.0,0.00014999,2]
[422394458,1778926239000,-150.0,0.00014999,2]
[422394461,1778926239000,-300.0,0.00014999,2]
[422394460,1778926239000,-352.0203254,0.00014999,2]
[422394462,1778926239000,-300.0,0.00014999,2]
[422394464,1778926239000,-485.7166397,0.00015,2]
[422394463,1778926239000,-2058621.31669829,0.00015,2]
[422394466,1778926239000,-687.23756466,0.00015,2]
[422394442,1778926239000,-151.0,0.00014997,2]
[422394440,1778926239000,-500.0,0.00014989,2]
[422394445,1778926239000,-381.06686337,0.00014999,2]
[422394441,1778926239000,-165.0,0.00014992,2]
[422394389,1778926239000,-500.0,0.00014989,2]
[422394391,1778926239000,-500.0,0.00014989,2]
[422394381,1778926239000,-500.0,0.00014989,2]
[422394393,1778926239000,-500.0,0.00014989,2]
[422394395,1778926239000,-500.0,0.00014989,2]
[422394397,1778926239000,-500.0,0.00014989,2]
[422394400,1778926239000,-500.0,0.00014989,2]
[422394402,1778926239000,-500.0,0.00014989,2]
[422394408,1778926239000,-500.0,0.00014989,2]
[422394438,1778926239000,-300.36771454,0.00014989,2]
[422394410,1778926239000,-500.0,0.00014989,2]
[422394404,1778926239000,-500.0,0.00014989,2]
[422394413,1778926239000,-500.0,0.00014989,2]
[422394415,1778926239000,-500.0,0.00014989,2]
[422394432,1778926239000,-500.0,0.00014989,2]
[422394406,1778926239000,-500.0,0.00014989,2]
[422394430,1778926239000,-500.0,0.00014989,2]
[422394428,1778926239000,-500.0,0.00014989,2]
[422394434,1778926239000,-500.0,0.00014989,2]
[422394423,1778926239000,-500.0,0.00014989,2]
[422394421,1778926239000,-500.0,0.00014989,2]
[422394419,1778926239000,-500.0,0.00014989,2]
[422394417,1778926239000,-500.0,0.00014989,2]
[422394425,1778926239000,-500.0,0.00014989,2]
[422394465,1778926239000,-719.08019334,0.00015,2]
[422394476,1778926240000,-726.25366283,0.00015,2]
[422394474,1778926240000,-1379471.83553188,0.00015,2]
[422394475,1778926240000,-461.09233393,0.00015,2]
[422394477,1778926241000,-508.28615974,0.00015,2]
[422394493,1778926243000,-2076.26775754,0.00015,2]
[422394494,1778926243000,-3145.20959537,0.00015,14]
[422394496,1778926243000,-1506961.48793107,0.00015,2]
[422394490,1778926243000,-621.66646286,0.000147,2]
[422394489,1778926243000,-539.44516753,0.000147,2]
[422394491,1778926243000,-665.65984117,0.000147,2]
[422394498,1778926243000,-156.56359846,0.00015,2]
[422394492,1778926243000,-724859.16543983,0.00015,2]
[422394497,1778926243000,-250.0,0.00015,2]
[422394495,1778926243000,-8083.22155272,0.00015,2]
[422394503,1778926243000,-1540.0,0.00015,2]
[422394506,1778926243000,-150.0,0.00015,2]
[422394504,1778926243000,-1540.0,0.00015,2]
[422394499,1778926243000,-1540.0,0.00015,2]
[422394502,1778926243000,-1540.0,0.00015,2]
[422394505,1778926243000,-598.0,0.00015,2]
[422394500,1778926243000,-1540.0,0.00015,2]
[422394501,1778926243000,-1540.0,0.00015,2]
[422394538,1778926244000,-500.0,0.00015,2]
[422394547,1778926244000,-500.0,0.00015,2]
[422394537,1778926244000,-500.0,0.00015,2]
[422394548,1778926244000,-500.0,0.00015,2]
[422394549,1778926244000,-500.0,0.00015,2]
[422394540,1778926244000,-500.0,0.00015,2]
[422394539,1778926244000,-500.0,0.00015,2]
[422394544,1778926244000,-500.0,0.00015,2]
[422394545,1778926244000,-500.0,0.00015,2]
[422394541,1778926244000,-500.0,0.00015,2]
[422394543,1778926244000,-500.0,0.00015,2]
[422394550,1778926244000,-500.0,0.00015,2]
[422394546,1778926244000,-500.0,0.00015,2]
[422394560,1778926244000,-500.0,0.00015,2]
[422394561,1778926244000,-500.0,0.00015,2]
[422394562,1778926244000,-500.0,0.00015,2]
[422394551,1778926244000,-500.0,0.00015,2]
[422394552,1778926244000,-500.0,0.00015,2]
[422394556,1778926244000,-500.0,0.00015,2]
[422394557,1778926244000,-500.0,0.00015,2]
[422394555,1778926244000,-500.0,0.00015,2]
[422394558,1778926244000,-500.0,0.00015,2]
[422394554,1778926244000,-500.0,0.00015,2]
[422394542,1778926244000,-500.0,0.00015,2]
[422394530,1778926244000,-500.0,0.00015,2]
[422394528,1778926244000,-500.0,0.00015,2]
[422394526,1778926244000,-150.0,0.00015,2]
[422394507,1778926244000,-4178.02219016,0.00015,2]
[422394508,1778926244000,-150.0,0.00015,2]
[422394509,1778926244000,-21659.16403148,0.00015,2]
[422394510,1778926244000,-150.0,0.00015,2]
[422394511,1778926244000,-2210.41753017,0.00015,2]
[422394514,1778926244000,-150.0,0.00015,2]
[422394512,1778926244000,-628.62,0.00015,2]
[422394516,1778926244000,-250.0,0.00015,2]
[422394520,1778926244000,-150.0,0.00015,2]
[422394518,1778926244000,-206.001,0.00015,2]
[422394521,1778926244000,-150.0,0.00015,2]
[422394563,1778926244000,-500.0,0.00015,2]
[422394519,1778926244000,-150.0,0.00015,2]
[422394524,1778926244000,-150.0,0.00015,2]
[422394523,1778926244000,-299.825,0.00015,2]
[422394534,1778926244000,-500.0,0.00015,2]
[422394525,1778926244000,-150.0,0.00015,2]
[422394535,1778926244000,-500.0,0.00015,2]
[422394533,1778926244000,-500.0,0.00015,2]
[422394532,1778926244000,-500.0,0.00015,2]
[422394536,1778926244000,-500.0,0.00015,2]
[422394531,1778926244000,-500.0,0.00015,2]
[422394529,1778926244000,-500.0,0.00015,2]
[422394527,1778926244000,-150.0,0.00015,2]
[422394522,1778926244000,-150.0,0.00015,2]
[422394565,1778926244000,-500.0,0.00015,2]
[422394559,1778926244000,-500.0,0.00015,2]
[422394568,1778926244000,-500.0,0.00015,2]
[422394594,1778926244000,-500.0,0.00015,2]
[422394596,1778926244000,-500.0,0.00015,2]
[422394597,1778926244000,-500.0,0.00015,2]
[422394595,1778926244000,-500.0,0.00015,2]
[422394598,1778926244000,-500.0,0.00015,2]
[422394602,1778926244000,-500.0,0.00015,2]
[422394601,1778926244000,-500.0,0.00015,2]
[422394600,1778926244000,-500.0,0.00015,2]
[422394567,1778926244000,-500.0,0.00015,2]
[422394605,1778926244000,-500.0,0.00015,2]
[422394604,1778926244000,-500.0,0.00015,2]
[422394606,1778926244000,-500.0,0.00015,2]
[422394608,1778926244000,-500.0,0.00015,2]
[422394607,1778926244000,-500.0,0.00015,2]
[422394611,1778926244000,-500.0,0.00015,2]
[422394609,1778926244000,-500.0,0.00015,2]
[422394613,1778926244000,-500.0,0.00015,2]
[422394612,1778926244000,-500.0,0.00015,2]
[422394610,1778926244000,-500.0,0.00015,2]
[422394614,1778926244000,-500.0,0.00015,2]
[422394616,1778926244000,-170.940753,0.00015,2]
[422394618,1778926244000,-926.0,0.00015,2]
[422394619,1778926244000,-3543.0,0.00015,2]
[422394617,1778926244000,-1354.0,0.00015,2]
[422394620,1778926244000,-1739894.62762504,0.00015,2]
[422394603,1778926244000,-500.0,0.00015,2]
[422394593,1778926244000,-500.0,0.00015,2]
[422394599,1778926244000,-500.0,0.00015,2]
[422394591,1778926244000,-500.0,0.00015,2]
[422394566,1778926244000,-500.0,0.00015,2]
[422394569,1778926244000,-500.0,0.00015,2]
[422394592,1778926244000,-500.0,0.00015,2]
[422394572,1778926244000,-500.0,0.00015,2]
[422394573,1778926244000,-500.0,0.00015,2]
[422394570,1778926244000,-500.0,0.00015,2]
[422394576,1778926244000,-500.0,0.00015,2]
[422394575,1778926244000,-500.0,0.00015,2]
[422394564,1778926244000,-500.0,0.00015,2]
[422394574,1778926244000,-500.0,0.00015,2]
[422394577,1778926244000,-500.0,0.00015,2]
[422394578,1778926244000,-500.0,0.00015,2]
[422394571,1778926244000,-500.0,0.00015,2]
[422394584,1778926244000,-500.0,0.00015,2]
[422394580,1778926244000,-500.0,0.00015,2]
[422394590,1778926244000,-500.0,0.00015,2]
[422394583,1778926244000,-500.0,0.00015,2]
[422394581,1778926244000,-500.0,0.00015,2]
[422394588,1778926244000,-500.0,0.00015,2]
[422394589,1778926244000,-500.0,0.00015,2]
[422394553,1778926244000,-500.0,0.00015,2]
[422394586,1778926244000,-500.0,0.00015,2]
[422394587,1778926244000,-500.0,0.00015,2]
[422394579,1778926244000,-500.0,0.00015,2]
[422394582,1778926244000,-500.0,0.00015,2]
[422394585,1778926244000,-500.0,0.00015,2]
[422394632,1778926246000,-1439.73426143,0.000147,2]
[422394634,1778926246000,-10957.6688578,0.00015,2]
[422394633,1778926246000,-203.6918752,0.00015,2]
[422394637,1778926246000,-10859.0,0.00015,2]
[422394635,1778926246000,-6028.47600185,0.00015,2]
[422394638,1778926246000,-50000.05,0.00015,2]
[422394641,1778926246000,-1157.91856367,0.00015,2]
[422394640,1778926246000,-441.39494545,0.00015,2]
[422394639,1778926246000,-2282.08551822,0.00015,2]
[422394636,1778926246000,-8986.03381972,0.00015,2]
[422394645,1778926350000,201.64964934,0.0001,2]
[422394646,1778926353000,3000.0,0.00030137,120]
[422394647,1778926355000,7117.0,0.00030137,120]
[422394648,1778926361000,4000.0,0.00030137,120]
[422394649,1778926371000,401.516,0.0003,120]
[422394650,1778926417000,240.344248,0.00025739,120]
[422394651,1778926425000,301.516,0.0003,120]
[422394653,1778926476000,402.516,0.0003,120]
[422394654,1778926506000,178.0,0.00028984,120]
[422394655,1778926542000,275.09187605,0.00025915,120]
[422394656,1778926547000,411.516,0.0003,120]
[422394657,1778926553000,162.32,7.013e-05,2]
[422394659,1778926553000,162.32,9.708e-05,2]
[422394658,1778926553000,162.32,8.36e-05,2]
[422394660,1778926612000,422.519,0.0003,120]
[422394662,1778926908000,500.0,0.00029452,120]
[422394695,1778927431000,-26478.06,0.00013474,2]
[422394689,1778927431000,-1350.63,0.00013451,2]
[422394697,1778927431000,-150.0,0.00013488,2]
[422394698,1778927431000,-150.0,0.00013488,2]
[422394684,1778927431000,-500.0,0.00013299,2]
[422394681,1778927431000,-155.3,0.00013045,2]
[422394683,1778927431000,-198.5,0.00013228,2]
[422394682,1778927431000,-2000.0,0.00013164,2]
[422394686,1778927431000,-2312.0,0.000134,2]
[422394685,1778927431000,-215.03962261,0.00013325,2]
[422394687,1778927431000,-2312.0,0.000134,2]
[422394678,1778927431000,-198.5,0.00012905,2]
[422394694,1778927431000,-150.0,0.00013473,2]
[422394676,1778927431000,-1200.0,0.00012905,2]
[422394677,1778927431000,-300.0,0.00012905,2]
[422394673,1778927431000,-162.32,0.00012403,2]
[422394675,1778927431000,-165.0,0.00012825,2]
[422394674,1778927431000,-5208.09,0.00012815,2]
[422394671,1778927431000,-300.76409514,0.00011713,2]
[422394672,1778927431000,-500.0015087,0.00011713,2]
[422394670,1778927431000,-162.32,0.00011056,2]
[422394669,1778927431000,-152.0,0.00010648,2]
[422394680,1778927431000,-1852.42,0.00012983,2]
[422394691,1778927431000,-200.0,0.00013471,2]
[422394679,1778927431000,-16390.01,0.00012906,2]
[422394699,1778927431000,-150.0,0.00013488,2]
[422394693,1778927431000,-759.24146496,0.00013473,2]
[422394720,1778927431000,-163.0,0.0001404,2]
[422394713,1778927431000,-500.0,0.00013904,2]
[422394717,1778927431000,-164.73,0.00013975,2]
[422394719,1778927431000,-250.0,0.00014,2]
[422394716,1778927431000,-166.66,0.00013973,2]
[422394711,1778927431000,-166.66,0.00013836,2]
[422394715,1778927431000,-930.0,0.00013904,2]
[422394712,1778927431000,-198.5,0.00013873,2]
[422394710,1778927431000,-150.0,0.00013821,2]
[422394706,1778927431000,-166.66,0.00013699,2]
[422394709,1778927431000,-162.32,0.00013751,2]
[422394718,1778927431000,-150.0,0.00013987,2]
[422394696,1778927431000,-150.0,0.00013488,2]
[422394708,1778927431000,-1619.0,0.0001372,2]
[422394705,1778927431000,-269.1813222,0.00013698,2]
[422394701,1778927431000,-198.5,0.00013551,2]
[422394702,1778927431000,-150.0,0.00013654,2]
[422394704,1778927431000,-500.0,0.00013698,2]
[422394703,1778927431000,-500.0,0.00013698,2]
[422394700,1778927431000,-150.0,0.00013488,2]
[422394688,1778927431000,-2312.0,0.000134,2]
[422394692,1778927431000,-1001.62299047,0.00013473,2]
[422394690,1778927431000,-326.25,0.00013463,2]
[422394707,1778927431000,-163.0,0.0001372,2]
[422394759,1778927432000,-150.0,0.0001432,2]
[422394758,1778927432000,-500.0,0.00014314,2]
[422394770,1778927432000,-277.069439,0.00014523,2]
[422394764,1778927432000,-150.0,0.00014487,2]
[422394760,1778927432000,-150.0,0.00014375,2]
[422394755,1778927432000,-8046.78600758,0.0001425,2]
[422394765,1778927432000,-1500.0,0.000145,5]
[422394769,1778927432000,-160.0,0.00014523,2]
[422394757,1778927432000,-1582.625274,0.0001425,2]
[422394767,1778927432000,-242.649216,0.00014523,2]
[422394766,1778927432000,-708.76,0.00014504,2]
[422394768,1778927432000,-231.172393,0.00014523,2]
[422394763,1778927432000,-598.29322813,0.00014421,2]
[422394762,1778927432000,-700.0,0.000144,5]
[422394753,1778927432000,-95198.77757147,0.0001425,2]
[422394730,1778927432000,-28759.1385,0.0001415,2]
[422394751,1778927432000,-37850.24472575,0.0001425,2]
[422394771,1778927432000,-394.138878,0.00014523,2]
[422394722,1778927432000,-500.0,0.0001404,2]
[422394724,1778927432000,-166.66,0.0001411,2]
[422394726,1778927432000,-5982.5952,0.0001415,2]
[422394732,1778927432000,-3000.0,0.00014153,2]
[422394736,1778927432000,-420.0,0.00014154,2]
[422394761,1778927432000,-166.66,0.00014384,2]
[422394728,1778927432000,-3668.9793,0.0001415,2]
[422394738,1778927432000,-1680.0,0.00014195,2]
[422394749,1778927432000,-1933.74454523,0.0001425,2]
[422394744,1778927432000,-166.66,0.00014247,2]
[422394740,1778927432000,-198.5,0.00014196,2]
[422394746,1778927432000,-411.98782477,0.0001425,2]
[422394742,1778927432000,-150.0,0.00014237,2]
[422394734,1778927432000,-150.0,0.00014154,2]
[422394773,1778927432000,-152.0,0.00014556,7]
[422394795,1778927432000,-5000.0,0.00014797,2]
[422394776,1778927432000,-255.0,0.00014591,2]
[422394794,1778927432000,-320.0,0.00014791,2]
[422394792,1778927432000,-244.0,0.00014777,2]
[422394797,1778927432000,-541.79,0.000148,2]
[422394772,1778927432000,-197.629603,0.00014523,2]
[422394796,1778927432000,-240.56962997,0.00014797,2]
[422394798,1778927432000,-383.27,0.000148,2]
[422394793,1778927432000,-9999.99,0.00014786,2]
[422394800,1778927432000,-3800.0,0.000148,5]
[422394802,1778927432000,-500.33214469,0.00014818,2]
[422394803,1778927432000,-500.0,0.00014818,2]
[422394805,1778927432000,-2326.94882108,0.00014818,2]
[422394804,1778927432000,-500.0,0.00014818,2]
[422394807,1778927432000,-2175.85573923,0.00014819,2]
[422394806,1778927432000,-31567.97544487,0.00014819,2]
[422394801,1778927432000,-2000.0,0.0001481,2]
[422394791,1778927432000,-2326.94882108,0.00014736,2]
[422394799,1778927432000,-298.15,0.000148,2]
[422394790,1778927432000,-1654.14103305,0.000147,2]
[422394774,1778927432000,-152.0,0.00014556,7]
[422394789,1778927432000,-3000.0,0.000147,5]
[422394778,1778927432000,-254.756909,0.00014596,2]
[422394787,1778927432000,-2312.0,0.0001468,2]
[422394788,1778927432000,-2132.0,0.0001468,2]
[422394779,1778927432000,-189.667539,0.00014599,2]
[422394780,1778927432000,-2200.0,0.000146,5]
[422394775,1778927432000,-2326.94882108,0.00014572,2]
[422394781,1778927432000,-150.0,0.00014653,2]
[422394782,1778927432000,-2326.94882108,0.00014654,2]
[422394783,1778927432000,-297.995662,0.00014668,2]
[422394784,1778927432000,-244.49331,0.00014668,2]
[422394786,1778927432000,-2312.0,0.0001468,2]
[422394785,1778927432000,-163.0,0.0001468,2]
[422394777,1778927432000,-312.790004,0.00014596,2]
[422394832,1778927437000,-677.77,0.000147,2]
[422394831,1778927437000,-254.63,0.00013551,2]
[422394837,1778927437000,-26513.49306816,0.00014819,2]
[422394833,1778927437000,-160.0,0.00014599,2]
[422394835,1778927437000,-2896.01729632,0.00014819,2]
[422394834,1778927437000,-424.9906887,0.000147,2]
[422394836,1778927437000,-2294.07754481,0.00014819,2]
[422394840,1778927438000,-164120.78450661,0.00014819,2]
[422394842,1778927438000,-405.0,0.00014832,2]
[422394850,1778927438000,-329.0,0.00014889,2]
[422394853,1778927438000,-500.0,0.00014896,2]
[422394841,1778927438000,-150.0,0.0001482,2]
[422394851,1778927438000,-407.94896475,0.00014896,2]
[422394843,1778927438000,-320.0,0.00014844,2]
[422394852,1778927438000,-500.0,0.00014896,2]
[422394849,1778927438000,-2082.01435369,0.00014889,2]
[422394846,1778927438000,-24495.87741852,0.0001485,2]
[422394845,1778927438000,-10000.0,0.0001485,2]
[422394847,1778927438000,-5000.01,0.0001488,2]
[422394848,1778927438000,-200.0,0.0001488,2]
[422394854,1778927438000,-500.0,0.00014896,2]
[422394855,1778927438000,-271.01458838,0.00014896,2]
[422394856,1778927438000,-500.0,0.00014896,2]
[422394844,1778927438000,-5000.01,0.00014848,2]
[422394895,1778927439000,-500.0,0.00014896,2]
[422394903,1778927439000,-210.41445728,0.000149,2]
[422394894,1778927439000,-500.0,0.00014896,2]
[422394904,1778927439000,-1302.82216458,0.000149,2]
[422394892,1778927439000,-500.0,0.00014896,2]
[422394891,1778927439000,-500.0,0.00014896,2]
[422394890,1778927439000,-500.0,0.00014896,2]
[422394881,1778927439000,-500.0,0.00014896,2]
[422394900,1778927439000,-412.65887723,0.00014896,2]
[422394887,1778927439000,-500.0,0.00014896,2]
[422394893,1778927439000,-500.0,0.00014896,2]
[422394898,1778927439000,-150.0,0.00014896,2]
[422394899,1778927439000,-500.0,0.00014896,2]
[422394897,1778927439000,-158.93919027,0.00014896,2]
[422394901,1778927439000,-1500000.0,0.00014897,2]
[422394902,1778927439000,-329.0,0.00014897,2]
[422394884,1778927439000,-500.0,0.00014896,2]
[422394906,1778927439000,-2000.0,0.000149,2]
[422394905,1778927439000,-23643.1156,0.000149,2]
[422394917,1778927439000,-229.0,0.00014936,2]
[422394911,1778927439000,-172.81799297,0.000149,2]
[422394909,1778927439000,-700.0,0.000149,5]
[422394915,1778927439000,-226.83301235,0.000149,2]
[422394908,1778927439000,-2326.94882108,0.000149,2]